fUST/lending_fUST_20250723
["ID","MTS","AMOUNT","RATE_DAILY","PERIOD"]
[374287971,1753265473823,-460.0,0.00022465,2]
[374287972,1753265473833,-460.0,0.00022465,2]
[374287973,1753265473842,-2109.27,0.00022465,2]
[374287974,1753265473852,-1050.54,0.00022465,2]
[374287975,1753265473862,-460.0,0.00022465,2]
[374287976,1753265473872,-460.0,0.00022465,2]
[374287977,1753265473882,-460.0,0.00022465,2]
[374287978,1753265473892,-546.88,0.00022465,2]
[374287979,1753265473901,-153.413491,0.00022465,7]
[374287980,1753265473911,-153.413491,0.00022465,7]
[374287981,1753265473921,-460.0,0.00022465,2]
[374287982,1753265473932,-460.0,0.00022465,2]
[374287983,1753265473942,-460.0,0.00022465,2]
[374287984,1753265473952,-1635.39,0.00022465,2]
[374287985,1753265473962,-884.23,0.00022465,2]
[374287986,1753265473972,-300.75761929,0.00022466,2]
[374287987,1753265473981,-205.0,0.0002248,2]
[374287988,1753265473991,-587.0,0.00022548,2]
[374287989,1753265474000,-271.83,0.00022603,2]
[374287990,1753265474010,-5000.0,0.00022612,2]
[374287991,1753265474019,-560.0,0.00022624,2]
[374287992,1753265474029,-308.34046914,0.00022632,2]
[374287993,1753265474039,-500.0,0.00022639,2]
[374287994,1753265474049,-270.64813713,0.00022664,2]
[374287995,1753265474060,-151.0,0.000227,7]
[374287996,1753265474069,-525.01,0.00022707,7]
[374287997,1753265474078,-532.94,0.00022707,7]
[374287998,1753265474088,-3000.0,0.00022712,2]
[374287999,1753265474098,-460.0,0.00022739,2]
[374288000,1753265474107,-1396.32,0.00022739,2]
[374288001,1753265474116,-1130.89,0.00022739,2]
[374288002,1753265474126,-460.0,0.00022739,2]
[374288003,1753265474136,-528.6,0.00022739,2]
[374288004,1753265474146,-460.0,0.00022739,2]
[374288005,1753265474156,-806.5,0.00022739,2]
[374288006,1753265474165,-460.0,0.00022739,2]
[374288007,1753265474174,-460.0,0.00022739,2]
[374288008,1753265474184,-1052.43,0.00022739,2]
[374288009,1753265474193,-460.0,0.00022739,2]
[374288010,1753265474203,-460.0,0.00022739,2]
[374288011,1753265474213,-2210.59,0.00022739,2]
[374288012,1753265474222,-750.25,0.00022739,2]
[374288013,1753265474232,-460.0,0.00022739,2]
[374288014,1753265474242,-460.0,0.00022739,2]
[374288015,1753265474251,-502.17,0.00022739,2]
[374288016,1753265474261,-460.0,0.00022739,2]
[374288017,1753265474270,-460.0,0.00022739,2]
[374288018,1753265474280,-460.0,0.00022739,2]
[374288019,1753265474289,-460.0,0.00022739,2]
[374288020,1753265474298,-460.0,0.00022739,2]
[374288021,1753265474308,-590.43,0.00022739,2]
[374288022,1753265474318,-431.4586869,0.00022739,2]
[374288023,1753265474327,-460.0,0.00022739,2]
[374288024,1753265474340,-545.58,0.00022739,2]
[374288025,1753265474350,-1371.54,0.00022739,2]
[374288026,1753265474359,-460.0,0.00022739,2]
[374288027,1753265474369,-495.25,0.00022739,2]
[374288028,1753265474379,-1752.06,0.00022739,2]
[374288029,1753265474388,-2780.13,0.00022739,2]
[374288030,1753265474398,-492.84,0.00022739,2]
[374288031,1753265474408,-485.84,0.00022739,2]
[374288032,1753265474418,-460.0,0.00022739,2]
[374288033,1753265474428,-1705.5,0.00022739,2]
[374288034,1753265474438,-460.0,0.00022739,2]
[374288035,1753265474447,-979.8,0.00022739,2]
[374288036,1753265474457,-493.35,0.00022739,2]
[374288037,1753265474467,-460.0,0.00022739,2]
[374288038,1753265474476,-3732.57,0.00022739,2]
[374288039,1753265474486,-538.86,0.00022739,2]
[374288040,1753265474496,-5749.02,0.00022739,2]
[374288041,1753265474506,-460.0,0.00022739,2]
[374288042,1753265474515,-713.04,0.00022739,2]
[374288043,1753265474525,-460.0,0.00022739,2]
[374288044,1753265474536,-1054.45,0.00022739,2]
[374288045,1753265474546,-498.33,0.00022739,2]
[374288046,1753265474556,-460.0,0.00022739,2]
[374288047,1753265474567,-460.0,0.00022739,2]
[374288048,1753265474577,-2109.27,0.00022739,2]
[374288049,1753265474692,-1050.54,0.00022739,2]
[374288050,1753265474702,-460.0,0.00022739,2]
[374288051,1753265474713,-460.0,0.00022739,2]
[374288052,1753265474723,-460.0,0.00022739,2]
[374288053,1753265474733,-546.88,0.00022739,2]
[374288054,1753265474743,-460.0,0.00022739,2]
[374288055,1753265474753,-460.0,0.00022739,2]
[374288056,1753265474763,-175.42131808,0.00022739,2]
[374288057,1753265474773,-884.23,0.00022739,2]
[374288058,1753265474783,-25000.0,0.00022759,2]
[374288059,1753265474793,-205.0,0.0002277,2]
[374288060,1753265474802,-525.01,0.00022807,5]
[374288061,1753265474813,-532.94,0.00022807,5]
[374288062,1753265474822,-525.01,0.00022907,4]
[374288063,1753265474832,-532.94,0.00022907,7]
[374288064,1753265474842,-500.0,0.00022913,2]
[374288065,1753265474851,-4290.92441391,0.00022931,2]
[374288066,1753265474861,-152.712855,0.00023,3]
[374288067,1753265474871,-152.712855,0.00023,3]
[374288068,1753265474880,-160.0,0.00023,2]
[374288069,1753265474890,-525.01,0.00023007,5]
[374288070,1753265474899,-532.982,0.00023007,4]
[374288071,1753265474909,-578.54280198,0.00023013,2]
[374288072,1753265474918,-1396.32,0.00023013,2]
[374288073,1753265474928,-1130.89,0.00023013,2]
[374288074,1753265474938,-460.0,0.00023013,2]
[374288075,1753265474947,-460.0,0.00023013,2]
[374288076,1753265474956,-806.5,0.00023013,2]
[374288077,1753265474966,-460.0,0.00023013,2]
[374288078,1753265474975,-1052.43,0.00023013,2]
[374288079,1753265474984,-460.0,0.00023013,2]
[374288080,1753265474994,-460.0,0.00023013,2]
[374288081,1753265475003,-2210.59,0.00023013,2]
[374288082,1753265475013,-750.25,0.00023013,2]
[374288083,1753265475023,-460.0,0.00023013,2]
[374288084,1753265475032,-412.74,0.00023013,2]
[374288085,1753265475041,-502.17,0.00023013,2]
[374288086,1753265475051,-554.53,0.00023013,2]
[374288087,1753265475060,-460.0,0.00023013,2]
[374288088,1753265475070,-460.0,0.00023013,2]
[374288089,1753265475079,-460.0,0.00023013,2]
[374288090,1753265475088,-460.0,0.00023013,2]
[374288091,1753265475098,-590.43,0.00023013,2]
[374288092,1753265475107,-151.0,0.00023013,7]
[374288093,1753265475117,-151.0,0.00023013,7]
[374288094,1753265475127,-460.0,0.00023013,2]
[374288095,1753265475137,-545.58,0.00023013,2]
[374288096,1753265475148,-1371.54,0.00023013,2]
[374288097,1753265475157,-460.0,0.00023013,2]
[374288098,1753265475167,-495.25,0.00023013,2]
[374288099,1753265475178,-1752.06,0.00023013,2]
[374288100,1753265475188,-2780.13,0.00023013,2]
[374288101,1753265475197,-492.84,0.00023013,2]
[374288102,1753265475207,-485.84,0.00023013,2]
[374288103,1753265475217,-360.694872,0.00023013,7]
[374288104,1753265475227,-460.0,0.00023013,2]
[374288105,1753265475236,-360.694872,0.00023013,7]
[374288106,1753265475245,-1705.5,0.00023013,2]
[374288107,1753265475254,-460.0,0.00023013,2]
[374288108,1753265475264,-979.8,0.00023013,2]
[374288109,1753265475274,-493.35,0.00023013,2]
[374288110,1753265475285,-460.0,0.00023013,2]
[374288111,1753265475296,-3732.57,0.00023013,2]
[374288112,1753265475307,-1151.421358,0.00023013,7]
[374288113,1753265475317,-538.86,0.00023013,2]
[374288114,1753265475326,-5749.02,0.00023013,2]
[374288115,1753265475339,-1151.421358,0.00023013,7]
[374288116,1753265475349,-460.0,0.00023013,2]
[374288117,1753265475358,-713.04,0.00023013,2]
[374288118,1753265475368,-460.0,0.00023013,2]
[374288119,1753265475379,-1054.45,0.00023013,2]
[374288120,1753265475388,-460.0,0.00023013,2]
[374288121,1753265475398,-498.33,0.00023013,2]
[374288122,1753265475407,-460.0,0.00023013,2]
[374288123,1753265475419,-2109.27,0.00023013,2]
[374288124,1753265475429,-1050.54,0.00023013,2]
[374288125,1753265475439,-460.0,0.00023013,2]
[374288126,1753265475449,-460.0,0.00023013,2]
[374288127,1753265475458,-460.0,0.00023013,2]
[374288128,1753265475468,-546.88,0.00023013,2]
[374288129,1753265475477,-460.0,0.00023013,2]
[374288130,1753265475487,-460.0,0.00023013,2]
[374288131,1753265475497,-173.0,0.00023014,7]
[374288132,1753265475507,-223.0315306,0.00023032,2]
[374288133,1753265475516,-205.0,0.0002307,2]
[374288134,1753265475524,-525.01,0.00023107,5]
[374288135,1753265475534,-500.57227777,0.00023133,2]
[374288136,1753265475543,-660.0,0.00023172,2]
[374288137,1753265475553,-534.5378997,0.00023187,2]
[374288138,1753265475562,-2157.0,0.0002319,2]
[374288139,1753265475571,-525.01,0.00023207,3]
[374288140,1753265475581,-250.0,0.00023259,2]
[374288141,1753265475590,-622.75820574,0.0002326,2]
[374288142,1753265475599,-969.0,0.0002328,2]
[374288143,1753265475608,-1396.32,0.00023287,2]
[374288144,1753265475617,-1130.89,0.00023287,2]
[374288145,1753265475628,-460.0,0.00023287,2]
[374288146,1753265475637,-806.5,0.00023287,2]
[374288147,1753265475646,-460.0,0.00023287,2]
[374288148,1753265475655,-1052.43,0.00023287,2]
[374288149,1753265475665,-460.0,0.00023287,2]
[374288150,1753265475675,-460.0,0.00023287,2]
[374288151,1753265475684,-2210.59,0.00023287,2]
[374288152,1753265475693,-750.25,0.00023287,2]
[374288153,1753265475703,-460.0,0.00023287,2]
[374288154,1753265475712,-502.17,0.00023287,2]
[374288155,1753265475722,-460.0,0.00023287,2]
[374288156,1753265475731,-460.0,0.00023287,2]
[374288157,1753265475741,-590.43,0.00023287,2]
[374288158,1753265475750,-460.0,0.00023287,2]
[374288159,1753265475760,-545.58,0.00023287,2]
[374288160,1753265475769,-1371.54,0.00023287,2]
[374288161,1753265475779,-460.0,0.00023287,2]
[374288162,1753265475788,-495.25,0.00023287,2]
[374288163,1753265475798,-1752.06,0.00023287,2]
[374288164,1753265475807,-2780.13,0.00023287,2]
[374288165,1753265475818,-492.84,0.00023287,2]
[374288166,1753265475827,-485.84,0.00023287,2]
[374288167,1753265475836,-460.0,0.00023287,2]
[374288168,1753265475845,-1705.5,0.00023287,2]
[374288169,1753265475855,-460.0,0.00023287,2]
[374288170,1753265475864,-979.8,0.00023287,2]
[374288171,1753265475874,-493.35,0.00023287,2]
[374288172,1753265475883,-460.0,0.00023287,2]
[374288173,1753265475893,-3732.57,0.00023287,2]
[374288174,1753265475903,-538.86,0.00023287,2]
[374288175,1753265475912,-5749.02,0.00023287,2]
[374288176,1753265475922,-460.0,0.00023287,2]
[374288177,1753265475931,-713.04,0.00023287,2]
[374288178,1753265475940,-151.0,0.00023287,7]
[374288179,1753265475950,-460.0,0.00023287,2]
[374288180,1753265475959,-1054.45,0.00023287,2]
[374288181,1753265475969,-460.0,0.00023287,2]
[374288182,1753265475979,-498.33,0.00023287,2]
[374288183,1753265475988,-460.0,0.00023287,2]
[374288184,1753265475998,-2109.27,0.00023287,2]
[374288185,1753265476008,-1050.54,0.00023287,2]
[374288186,1753265476018,-270.494442,0.00023287,7]
[374288187,1753265476027,-295.905301,0.00023287,7]
[374288188,1753265476037,-295.905301,0.00023287,7]
[374288189,1753265476047,-460.0,0.00023287,2]
[374288190,1753265476056,-460.0,0.00023287,2]
[374288191,1753265476069,-460.0,0.00023287,2]
[374288192,1753265476079,-546.88,0.00023287,2]
[374288193,1753265476089,-460.0,0.00023287,2]
[374288194,1753265476098,-460.0,0.00023287,2]
[374288195,1753265476108,-429.674968,0.00023288,2]
[374288196,1753265476118,-429.674968,0.00023288,2]
[374288197,1753265476127,-170.64335,0.00023288,2]
[374288198,1753265476136,-2977.51,0.000233,7]
[374288199,1753265476145,-525.01,0.00023307,2]
[374288200,1753265476155,-3372.59522571,0.00023364,2]
[374288201,1753265476164,-205.0,0.0002337,2]
[374288202,1753265476174,-50523.38,0.000234,2]
[374288203,1753265476184,-525.01,0.00023407,4]
[374288204,1753265476193,-4000.0,0.00023447,4]
[374288205,1753265476203,-180.05127002,0.00023461,2]
[374288206,1753265476212,-4290.92441391,0.00023491,2]
[374288207,1753265476222,-12153.16,0.000235,7]
[374288208,1753265476231,-151.0,0.000235,7]
[374288209,1753265476240,-525.01,0.00023507,6]
[374288210,1753265476249,-272.47,0.00023561,2]
[374288211,1753265476259,-272.47,0.00023561,2]
[374288212,1753265476267,-272.47,0.00023561,2]
[374288213,1753265476279,-272.47,0.00023561,2]
[374288214,1753265476288,-272.47,0.00023561,2]
[374288215,1753265476297,-272.47,0.00023561,2]
[374288216,1753265476308,-272.47,0.00023561,2]
[374288217,1753265476319,-272.47,0.00023561,2]
[374288218,1753265476329,-1396.32,0.00023561,2]
[374288219,1753265476342,-272.47,0.00023561,2]
[374288220,1753265476352,-272.47,0.00023561,2]
[374288221,1753265476361,-272.47,0.00023561,2]
[374288222,1753265476371,-272.47,0.00023561,2]
[374288223,1753265476382,-272.47,0.00023561,2]
[374288224,1753265476391,-272.47,0.00023561,2]
[374288225,1753265476401,-272.47,0.00023561,2]
[374288226,1753265476412,-272.47,0.00023561,2]
[374288227,1753265476422,-272.47,0.00023561,2]
[374288228,1753265476431,-1130.89,0.00023561,2]
[374288229,1753265476440,-535.74376898,0.00023561,2]
[374288230,1753265476450,-806.5,0.00023561,2]
[374288231,1753265476459,-460.0,0.00023561,2]
[374288232,1753265476469,-1052.43,0.00023561,2]
[374288233,1753265476479,-460.0,0.00023561,2]
[374288234,1753265476489,-460.0,0.00023561,2]
[374288235,1753265476498,-2210.59,0.00023561,2]
[374288236,1753265476507,-750.25,0.00023561,2]
[374288237,1753265476517,-460.0,0.00023561,2]
[374288238,1753265476526,-502.17,0.00023561,2]
[374288239,1753265476536,-460.0,0.00023561,2]
[374288240,1753265476545,-590.43,0.00023561,2]
[374288241,1753265476554,-460.0,0.00023561,2]
[374288242,1753265476564,-545.58,0.00023561,2]
[374288243,1753265476577,-1371.54,0.00023561,2]
[374288244,1753265476586,-460.0,0.00023561,2]
[374288245,1753265476596,-495.25,0.00023561,2]
[374288246,1753265476605,-1752.06,0.00023561,2]
[374288247,1753265476615,-2780.13,0.00023561,2]
[374288248,1753265476624,-492.84,0.00023561,2]
[374288249,1753265476633,-485.84,0.00023561,2]
[374288250,1753265476643,-460.0,0.00023561,2]
[374288251,1753265476653,-1705.5,0.00023561,2]
[374288252,1753265476662,-460.0,0.00023561,2]
[374288253,1753265476672,-979.8,0.00023561,2]
[374288254,1753265476681,-493.35,0.00023561,2]
[374288255,1753265476690,-460.0,0.00023561,2]
[374288256,1753265476699,-3732.57,0.00023561,2]
[374288257,1753265476709,-538.86,0.00023561,2]
[374288258,1753265476720,-5749.02,0.00023561,2]
[374288259,1753265476730,-460.0,0.00023561,2]
[374288260,1753265476739,-713.04,0.00023561,2]
[374288261,1753265476749,-460.0,0.00023561,2]
[374288262,1753265476759,-1054.45,0.00023561,2]
[374288263,1753265476769,-460.0,0.00023561,2]
[374288264,1753265476778,-498.33,0.00023561,2]
[374288265,1753265476788,-460.0,0.00023561,2]
[374288266,1753265476797,-2109.27,0.00023561,2]
[374288267,1753265476807,-1050.54,0.00023561,2]
[374288268,1753265476819,-460.0,0.00023561,2]
[374288269,1753265476829,-460.0,0.00023561,2]
[374288270,1753265476839,-460.0,0.00023561,2]
[374288271,1753265476848,-546.88,0.00023561,2]
[374288272,1753265476858,-460.0,0.00023561,2]
[374288273,1753265476868,-460.0,0.00023561,2]
[374288274,1753265476877,-577.5430988,0.00023562,2]
[374288275,1753265476887,-159.9205653,0.00023562,2]
[374288276,1753265476896,-356.4650232,0.00023562,2]
[374288277,1753265476905,-153.0,0.00023562,2]
[374288278,1753265476915,-178.2325116,0.00023562,2]
[374288279,1753265476924,-159.9205653,0.00023562,2]
[374288280,1753265476940,-577.5430988,0.00023562,2]
[374288281,1753265476953,-178.2325116,0.00023562,2]
[374288282,1753265476963,-159.9205653,0.00023562,2]
[374288283,1753265476972,-153.0,0.00023562,2]
[374288284,1753265476982,-577.5430988,0.00023562,2]
[374288285,1753265476992,-178.2325116,0.00023562,2]
[374288286,1753265477001,-159.9205653,0.00023562,2]
[374288287,1753265477010,-577.5430988,0.00023562,2]
[374288288,1753265477020,-159.9205653,0.00023562,2]
[374288289,1753265477030,-577.5430988,0.00023562,2]
[374288290,1753265477039,-153.0,0.00023562,2]
[374288291,1753265477049,-178.2325116,0.00023562,2]
[374288292,1753265477058,-178.2325116,0.00023562,2]
[374288293,1753265477069,-577.5430988,0.00023562,2]
[374288294,1753265477081,-159.9205653,0.00023562,2]
[374288295,1753265477101,-153.0,0.00023562,2]
[374288296,1753265477112,-178.2325116,0.00023562,2]
[374288297,1753265477122,-577.5430988,0.00023562,2]
[374288298,1753265477131,-159.9205653,0.00023562,2]
[374288299,1753265477141,-152.712855,0.00023585,2]
[374288300,1753265477151,-1000.0,0.00023593,5]
[374288301,1753265477160,-3372.59522571,0.00023599,2]
[374288302,1753265477171,-525.01,0.00023607,4]
[374288303,1753265477181,-407.74,0.0002363,2]
[374288304,1753265477190,-205.0,0.0002367,2]
[374288305,1753265477201,-525.01,0.00023707,2]
[374288306,1753265477212,-760.0,0.0002372,2]
[374288307,1753265477221,-525.01,0.00023807,7]
[374288308,1753265477231,-152.712855,0.00023825,3]
[374288309,1753265477240,-152.712855,0.00023825,3]
[374288310,1753265477249,-1396.32,0.00023835,2]
[374288311,1753265477259,-272.47,0.00023835,2]
[374288312,1753265477269,-1130.89,0.00023835,2]
[374288313,1753265477278,-806.5,0.00023835,2]
[374288314,1753265477289,-460.0,0.00023835,2]
[374288315,1753265477299,-1052.43,0.00023835,2]
[374288316,1753265477307,-460.0,0.00023835,2]
[374288317,1753265477319,-460.0,0.00023835,2]
[374288318,1753265477329,-2210.59,0.00023835,2]
[374288319,1753265477341,-750.25,0.00023835,2]
[374288320,1753265477350,-460.0,0.00023835,2]
[374288321,1753265477360,-502.17,0.00023835,2]
[374288322,1753265477371,-460.0,0.00023835,2]
[374288323,1753265477380,-590.43,0.00023835,2]
[374288324,1753265477389,-460.0,0.00023835,2]
[374288325,1753265477399,-545.58,0.00023835,2]
[374288326,1753265477410,-1371.54,0.00023835,2]
[374288327,1753265477419,-460.0,0.00023835,2]
[374288328,1753265477428,-495.25,0.00023835,2]
[374288329,1753265477437,-2780.13,0.00023835,2]
[374288330,1753265477446,-1752.06,0.00023835,2]
[374288331,1753265477455,-492.84,0.00023835,2]
[374288332,1753265477464,-485.84,0.00023835,2]
[374288333,1753265477473,-460.0,0.00023835,2]
[374288334,1753265477483,-1705.5,0.00023835,2]
[374288335,1753265477492,-460.0,0.00023835,2]
[374288336,1753265477502,-979.8,0.00023835,2]
[374288337,1753265477619,-493.35,0.00023835,2]
[374288338,1753265477629,-460.0,0.00023835,2]
[374288339,1753265477639,-3732.57,0.00023835,2]
[374288340,1753265477648,-538.86,0.00023835,2]
[374288341,1753265477658,-5749.02,0.00023835,2]
[374288342,1753265477667,-295.110964,0.00023835,7]
[374288343,1753265477680,-460.0,0.00023835,2]
[374288344,1753265477689,-713.04,0.00023835,2]
[374288345,1753265477699,-295.110964,0.00023835,7]
[374288346,1753265477709,-460.0,0.00023835,2]
[374288347,1753265477719,-1054.45,0.00023835,2]
[374288348,1753265477729,-460.0,0.00023835,2]
[374288349,1753265477739,-498.33,0.00023835,2]
[374288350,1753265477749,-460.0,0.00023835,2]
[374288351,1753265477760,-2109.27,0.00023835,2]
[374288352,1753265477772,-1050.54,0.00023835,2]
[374288353,1753265477782,-460.0,0.00023835,2]
[374288354,1753265477793,-460.0,0.00023835,2]
[374288355,1753265477802,-546.88,0.00023835,2]
[374288356,1753265477814,-460.0,0.00023835,2]
[374288357,1753265477823,-460.0,0.00023835,2]
[374288358,1753265477833,-634.77,0.00023885,2]
[374288359,1753265477842,-3372.59522571,0.00023894,2]
[374288360,1753265477852,-1691.98425361,0.000239,2]
[374288361,1753265477862,-525.01,0.00023907,5]
[374288362,1753265477871,-1789.09,0.00023917,2]
[374288363,1753265477880,-160.62204862,0.00023918,2]
[374288364,1753265477890,-160.62204863,0.00023918,2]
[374288365,1753265477900,-224.39,0.00023951,2]
[374288366,1753265477909,-150.168,0.00023951,2]
[374288367,1753265477918,-150.0,0.00023951,2]
[374288368,1753265477928,-648.0,0.00023951,2]
[374288369,1753265477937,-800.0,0.00023953,2]
[374288370,1753265477946,-205.0,0.0002397,2]
[374288371,1753265477955,-231.11583447,0.00024,7]
[374288372,1753265477964,-526.15909479,0.00024,7]
[374288373,1753265477974,-160.0,0.00024,7]
[374288374,1753265477986,-160.0,0.00024,7]
[374288375,1753265477996,-160.0,0.00024,7]
[374288376,1753265478005,-160.0,0.00024,7]
[374288377,1753265478015,-525.01,0.00024007,2]
[374288378,1753265478024,-600.0,0.0002405,2]
[374288379,1753265478033,-4290.92441391,0.00024052,2]
[374288380,1753265478043,-306.0,0.00024055,2]
[374288381,1753265478052,-153.0,0.00024055,2]
[374288382,1753265478062,-153.0,0.00024055,2]
[374288383,1753265478073,-153.0,0.00024055,2]
[374288384,1753265478083,-153.0,0.00024055,2]
[374288385,1753265478092,-153.0,0.00024055,2]
[374288386,1753265478102,-153.0,0.00024055,2]
[374288387,1753265478111,-153.0,0.00024055,2]
[374288388,1753265478120,-153.0,0.00024055,2]
[374288389,1753265478129,-153.0,0.00024055,2]
[374288390,1753265478139,-153.0,0.00024055,2]
[374288391,1753265478149,-153.0,0.00024055,2]
[374288392,1753265478158,-153.0,0.00024055,2]
[374288393,1753265478167,-153.0,0.00024055,2]
[374288394,1753265478177,-153.0,0.00024055,2]
[374288395,1753265478186,-153.0,0.00024055,2]
[374288396,1753265478196,-153.0,0.00024055,2]
[374288397,1753265478205,-153.0,0.00024055,2]
[374288398,1753265478215,-153.0,0.00024055,2]
[374288399,1753265478225,-153.0,0.00024055,2]
[374288400,1753265478234,-500.0,0.00024066,2]
[374288401,1753265478244,-500.0,0.00024066,2]
[374288402,1753265478254,-500.0,0.00024071,2]
[374288403,1753265478263,-1239.78,0.000241,7]
[374288404,1753265478273,-3000.0,0.000241,2]
[374288405,1753265478283,-525.0384,0.00024107,5]
[374288406,1753265478292,-1396.32,0.00024109,2]
[374288407,1753265478301,-272.47,0.00024109,2]
[374288408,1753265478311,-1130.89,0.00024109,2]
[374288409,1753265478325,-806.5,0.00024109,2]
[374288410,1753265478337,-460.0,0.00024109,2]
[374288411,1753265478348,-1052.43,0.00024109,2]
[374288412,1753265478358,-460.0,0.00024109,2]
[374288413,1753265478368,-460.0,0.00024109,2]
[374288414,1753265478379,-2210.59,0.00024109,2]
[374288415,1753265478389,-750.25,0.00024109,2]
[374288416,1753265478399,-314.89818072,0.00024109,2]
[374288417,1753265478409,-502.17,0.00024109,2]
[374288418,1753265478420,-590.43,0.00024109,2]
[374288419,1753265478430,-460.0,0.00024109,2]
[374288420,1753265478439,-545.58,0.00024109,2]
[374288421,1753265478448,-1371.54,0.00024109,2]
[374288422,1753265478458,-460.0,0.00024109,2]
[374288423,1753265478467,-495.25,0.00024109,2]
[374288424,1753265478476,-2780.13,0.00024109,2]
[374288425,1753265478486,-1752.06,0.00024109,2]
[374288426,1753265478495,-492.84,0.00024109,2]
[374288427,1753265478504,-485.84,0.00024109,2]
[374288428,1753265478513,-475.16,0.00024109,2]
[374288429,1753265478523,-1705.5,0.00024109,2]
[374288430,1753265478531,-460.0,0.00024109,2]
[374288431,1753265478541,-979.8,0.00024109,2]
[374288432,1753265478550,-493.35,0.00024109,2]
[374288433,1753265478559,-460.0,0.00024109,2]
[374288434,1753265478569,-3732.57,0.00024109,2]
[374288435,1753265478578,-538.86,0.00024109,2]
[374288436,1753265478587,-5749.02,0.00024109,2]
[374288437,1753265478597,-460.0,0.00024109,2]
[374288438,1753265478607,-713.04,0.00024109,2]
[374288439,1753265478616,-460.0,0.00024109,2]
[374288440,1753265478625,-1054.45,0.00024109,2]
[374288441,1753265478634,-460.0,0.00024109,2]
[374288442,1753265478643,-498.33,0.00024109,2]
[374288443,1753265478652,-460.0,0.00024109,2]
[374288444,1753265478662,-2109.27,0.00024109,2]
[374288445,1753265478671,-1050.54,0.00024109,2]
[374288446,1753265478681,-460.0,0.00024109,2]
[374288447,1753265478691,-460.0,0.00024109,2]
[374288448,1753265478701,-546.88,0.00024109,2]
[374288449,1753265478710,-460.0,0.00024109,2]
[374288450,1753265478719,-153.0,0.0002411,2]
[374288451,1753265478729,-153.0,0.0002411,2]
[374288452,1753265478738,-153.0,0.0002411,2]
[374288453,1753265478748,-3000.0,0.0002411,2]
[374288454,1753265478759,-3000.0,0.0002412,2]
[374288455,1753265478769,-3000.0,0.0002413,2]
[374288456,1753265478779,-3000.0,0.0002414,2]
[374288457,1753265478789,-3000.0,0.0002415,2]
[374288458,1753265478799,-3372.59522571,0.00024154,2]
[374288459,1753265478808,-3000.0,0.0002416,2]
[374288460,1753265478819,-151.0,0.0002416,7]
[374288461,1753265478829,-151.0,0.0002416,7]
[374288462,1753265478838,-151.0,0.0002416,7]
[374288463,1753265478848,-600.0,0.00024162,2]
[374288464,1753265478857,-180.0,0.00024164,7]
[374288465,1753265478867,-3000.0,0.0002417,2]
[374288466,1753265478877,-3000.0,0.0002418,2]
[374288467,1753265478887,-3000.0,0.0002419,2]
[374288468,1753265478897,-3000.0,0.000242,2]
[374288469,1753265478907,-3000.0,0.0002421,2]
[374288470,1753265478916,-3000.0,0.0002422,2]